bitfinex-derivatives/quotes_SOLF0:USTF0_20250125
["timestamp","ask_amount","ask_price","bid_price","bid_amount"]
[1737841680400,6.01135634,258.13,258.02,8.54955634]
[1737841680701,6.01135634,258.11,258.02,8.54955634]
[1737841681495,0.02639842,258.09,258.04,0.02564722]
[1737841681699,3.8756,258.06,258.04,0.02564722]
[1737841682900,3.8756,258.06,258.04,6.03700356]
[1737841683093,3.8756,258.06,258.04,0.02564722]
[1737841683499,3.8756,258.06,257.92,3.8777]
[1737841683500,3.8769,257.98,257.96,6.01135634]
[1737841685298,0.02523612,258.0,257.94,6.03939616]
[1737841685504,3.8771,257.96,257.94,6.03939616]
[1737841686403,0.02523612,258.0,257.94,6.03939616]
[1737841686707,3.8769,257.98,257.96,6.01135634]
[1737841694107,3.8769,257.97,257.96,6.01135634]
[1737841694403,6.01135634,257.97,257.94,0.02803982]
[1737841694606,6.01135634,257.97,257.85,6.01135634]
[1737841694815,3.8785,257.87,257.85,6.01135634]
[1737841695011,6.01135634,257.91,257.82,6.01135634]
[1737841695311,6.01135634,257.94,257.85,6.01135634]
[1737841695805,3.8777,257.92,257.87,0.026969]
[1737841696012,0.02784547,257.92,257.87,0.026969]
[1737841696407,3.878,257.9,257.87,0.026969]
[1737841697612,0.02784547,257.92,257.87,0.026969]
[1737841697813,6.01135634,257.88,257.79,6.01135634]
[1737841698214,3.879,257.84,257.79,6.01135634]
[1737841698517,8.56785634,257.91,257.82,6.01135634]
[1737841698705,1.3351,257.91,257.85,6.01135634]
[1737841698906,6.01135634,257.94,257.85,6.01135634]
[1737841699114,0.0247227,257.91,257.87,6.01135634]
[1737841700816,0.0247227,257.91,257.86,0.02773034]
[1737841701819,3.8782,257.89,257.86,0.02773034]
[1737841702119,0.0247227,257.91,257.86,0.02773034]
[1737841702411,0.0247227,257.91,257.88,6.01135634]
[1737841703213,3.9026227,257.91,257.88,6.01135634]
[1737841703512,0.0247227,257.91,257.88,6.01135634]
[1737841703711,3.878,257.9,257.86,6.03908668]
[1737841703913,0.0247227,257.91,257.86,0.02773034]
[1737841704119,6.01135634,257.89,257.86,0.02773034]
[1737841704310,9.88975634,257.87,257.86,0.02773034]
[1737841709119,3.8784,257.87,257.86,0.02773034]
[1737841709321,6.01135634,257.87,257.76,6.01135634]
[1737841709521,6.01135634,257.81,257.72,6.01135634]
[1737841709722,6.01135634,257.79,257.7,6.01135634]
[1737841710414,3.8806,257.73,257.7,6.01135634]
[1737841710620,6.03618001,257.77,257.72,0.02956243]
[1737841710921,3.8806,257.73,257.72,0.02956243]
[1737841711319,6.01135634,257.74,257.63,9.89335634]
[1737841711521,3.8814,257.68,257.63,6.01135634]
[1737841712617,0.02580279,257.68,257.63,6.0395904]
[1737841712922,0.02580279,257.68,257.63,0.02823406]
[1737841714419,3.8815,257.67,257.63,0.02823406]
[1737841714619,0.02580279,257.68,257.63,0.02823406]
[1737841714820,3.8818,257.65,257.63,0.02823406]
[1737841719624,9.40113062,257.64,257.47,9.40113062]
[1737841719825,9.40113062,257.6,257.46,39.56380653]
[1737841720022,9.40113062,257.6,257.47,3.8843]
[1737841720621,0.02715509,257.56,257.44,3.7846]
[1737841720828,9.42828571,257.56,257.51,0.02683614]
[1737841721026,9.40113062,257.56,257.4,2.52]
[1737841721219,3.8843,257.49,257.42,3.8852]
[1737841721422,9.42800615,257.56,257.45,0.02785012]
[1737841721423,9.40113062,257.56,257.45,0.02785012]
[1737841721624,0.02888201,257.48,257.45,0.02785012]
[1737841721826,0.02888201,257.48,257.45,3.91255012]
[1737841722129,0.02888201,257.48,257.45,0.02785012]
[1737841722323,3.8845,257.47,257.45,0.02785012]
[1737841728731,9.43001263,257.48,257.31,9.40113062]
[1737841728933,3.8861,257.36,257.32,0.7139166]
[1737841729732,3.8861,257.36,257.3,3.887]
[1737841729932,3.8861,257.36,257.31,0.02574878]
[1737841730331,0.02915127,257.37,257.31,9.4268794]
[1737841730531,0.02915127,257.37,257.32,0.71393819]
[1737841730832,0.02915127,257.37,257.33,0.71383581]
[1737841731928,0.02915127,257.37,257.36,3.8861]
[1737841732127,0.02915127,257.37,257.36,4.59993581]
[1737841732533,0.02915127,257.37,257.36,3.8861]
[1737841732733,0.02915127,257.37,257.36,4.59990388]
[1737841733430,0.02915127,257.37,257.36,3.8861]
[1737841734038,0.00389949,257.37,257.36,3.8861]
[1737841734233,0.00389949,257.37,257.36,4.59990688]
[1737841736138,0.00389949,257.37,257.36,3.8861]
[1737841736339,0.00389949,257.37,257.36,4.59991624]
[1737841738240,3.8848,257.45,257.36,0.71381624]
[1737841738441,9.40113062,257.56,257.43,3.885]
[1737841738738,9.40113062,257.56,257.39,9.40113062]
[1737841738937,3.8842,257.5,257.4,0.71364317]
[1737841739133,9.40113062,257.56,257.4,0.71364317]
[1737841739635,3.8842,257.49,257.45,0.02803719]
[1737841740340,3.884,257.5,257.45,3.91273719]
[1737841740532,0.02978965,257.51,257.45,0.02803719]
[1737841742242,3.8846,257.46,257.45,0.02803719]
[1737841745241,0.02978965,257.51,257.45,0.02803719]
[1737841745242,3.91368965,257.51,257.47,3.8845]
[1737841745544,0.02978965,257.51,257.45,0.02803719]
[1737841746035,0.02978965,257.51,257.45,0.74158791]
[1737841746345,0.02978965,257.51,257.48,9.40113062]
[1737841746535,1.2871,257.64,257.48,9.40113062]
[1737841746536,9.40113062,257.65,257.49,2.04238357]
[1737841746743,9.40113062,257.65,257.5,0.71338357]
[1737841747444,9.40113062,257.69,257.52,9.40113062]
[1737841747638,0.02788917,257.6,257.55,0.02964809]
[1737841747836,0.02788917,257.6,257.56,3.883]
[1737841748037,0.02788917,257.6,257.55,0.02964809]
[1737841748637,0.02788917,257.6,257.57,3.8829]
[1737841750549,3.8829,257.58,257.55,0.02964809]
[1737841750752,0.02788917,257.6,257.55,0.02964809]
[1737841752348,0.02788917,257.6,257.56,9.40113062]
[1737841752647,1.2244,257.77,257.56,9.40113062]
[1737841752648,10.62553062,257.77,257.57,0.71319633]
[1737841752848,10.62553062,257.77,257.61,9.40113062]
[1737841753142,3.8812,257.69,257.61,9.40113062]
[1737841753547,10.62553062,257.77,257.57,9.40113062]
[1737841753749,0.02530272,257.68,257.62,0.02738172]
[1737841755252,9.40113062,257.65,257.62,0.02738172]
[1737841755653,3.882,257.64,257.62,0.02738172]
[1737841757457,3.8816,257.66,257.62,0.02738172]
[1737841759151,3.90670272,257.68,257.62,0.02738172]
[1737841760055,3.90670272,257.68,257.62,3.90958172]
[1737841760659,0.02530272,257.68,257.62,3.90958172]
[1737841760861,3.8815,257.67,257.62,3.90958172]
[1737841762662,3.8815,257.67,257.62,0.02738172]
[1737841762960,0.02530272,257.68,257.62,0.02738172]
[1737841763157,3.882,257.64,257.62,0.02738172]
[1737841763662,3.8821,257.63,257.62,0.02738172]
[1737841767269,3.8837,257.52,257.51,1.2389]
[1737841769870,0.02702801,257.54,257.51,1.2389]
[1737841770075,3.91062801,257.54,257.51,1.2389]
[1737841770568,3.8836,257.53,257.51,1.2389]
[1737841771667,0.02702801,257.54,257.51,1.2389]
[1737841772575,3.8836,257.53,257.51,1.2389]
[1737841772869,0.02702801,257.54,257.49,0.0256106]
[1737841773269,3.884,257.5,257.49,0.0256106]
[1737841774264,3.8838,257.52,257.49,0.0256106]
[1737841774466,0.02702801,257.54,257.49,0.0256106]
[1737841774667,0.02702801,257.54,257.5,3.884]
[1737841774868,0.02702801,257.54,257.49,0.0256106]
[1737841775469,3.8824,257.61,257.51,9.40113062]
[1737841775669,9.40113062,257.67,257.51,9.40113062]
[1737841776771,0.02874949,257.62,257.56,0.0278138]
[1737841776972,0.02874949,257.62,257.6,3.8825]
[1737841777775,0.02874949,257.62,257.56,0.02744618]
[1737841777973,0.02874949,257.62,257.58,3.8827]
[1737841778977,0.02874949,257.62,257.59,3.8826]
[1737841779277,0.02874949,257.62,257.56,0.02744618]
[1737841780176,0.02874949,257.62,257.6,3.8825]
[1737841780577,3.881,257.7,257.63,3.8819]
[1737841781178,3.8815,257.67,257.58,15.03932864]
[1737841781779,0.02530348,257.65,257.6,0.02510125]
[1737841782174,0.02530348,257.65,257.61,3.8822]
[1737841783182,0.02530348,257.65,257.6,0.02510125]
[1737841783778,0.02530348,257.65,257.61,3.8823]
[1737841783979,0.02530348,257.65,257.6,0.02510125]
[1737841786283,0.02530348,257.65,257.64,3.8819]
[1737841793184,3.8804,257.75,257.69,3.8811]
[1737841793386,15.03932864,257.79,257.69,3.8811]
[1737841794285,0.02670688,257.77,257.71,0.02589996]
[1737841794880,0.02670688,257.77,257.71,3.90669996]
[1737841796283,3.8801,257.76,257.71,3.90669996]
[1737841797987,0.02670688,257.77,257.71,0.02589996]
[1737841798186,0.02670688,257.77,257.74,3.8804]
[1737841798385,0.02670688,257.77,257.71,0.02589996]
[1737841798687,0.02670688,257.77,257.74,3.8803]
[1737841799180,0.02670688,257.77,257.71,0.02589996]
[1737841799491,0.02670688,257.77,257.76,3.8801]
[1737841800482,0.02670688,257.77,257.71,0.02589996]
[1737841801589,3.8804,257.75,257.71,0.02589996]
[1737841802186,0.02670688,257.77,257.71,0.02589996]
[1737841802388,3.8807,257.72,257.71,0.02589996]
[1737841809688,9.3922513,257.74,257.55,2.52]
[1737841809893,9.3922513,257.7,257.54,1.3108]
[1737841810095,9.3922513,257.7,257.57,3.8829]
[1737841810296,3.882,257.64,257.57,3.8829]
[1737841810496,3.882,257.64,257.58,3.8828]
[1737841810696,0.02757508,257.63,257.58,3.91003563]
[1737841810997,0.02757508,257.63,257.58,0.02723563]
[1737841812197,0.02757508,257.63,257.59,3.8826]
[1737841816191,0.02757508,257.63,257.61,9.3922513]
[1737841816398,1.2677,257.79,257.61,9.3922513]
[1737841816589,1.2677,257.79,257.65,9.3922513]
[1737841816790,3.8802,257.76,257.7,3.8809]
[1737841817492,0.02872014,257.76,257.73,3.8805]
[1737841817795,0.02872014,257.76,257.7,0.0259374]
[1737841818399,0.02872014,257.76,257.74,3.8803]
[1737841819700,0.02872014,257.76,257.7,3.9068374]
[1737841820703,0.02872014,257.76,257.71,3.8808]
[1737841821595,0.02872014,257.76,257.73,3.8805]
[1737841822000,0.02872014,257.76,257.7,0.0259374]
[1737841822205,0.02872014,257.76,257.74,3.8804]
[1737841826904,0.02872014,257.76,257.75,3.8803]
[1737841833608,3.8791,257.83,257.77,3.8799]
[1737841834308,3.8791,257.83,257.73,9.3922513]
[1737841834508,3.8791,257.83,257.78,3.8797]
[1737841834704,0.02538915,257.81,257.75,0.02609721]
[1737841835311,0.02538915,257.81,257.76,3.88]
[1737841835505,0.02538915,257.81,257.75,0.02609721]
[1737841836608,0.02538915,257.81,257.77,9.3922513]
[1737841836812,9.3922513,257.95,257.84,3.8788]
[1737841837013,9.3922513,257.95,257.81,9.3922513]
[1737841837210,3.8783,257.88,257.81,9.3922513]
[1737841837713,3.8781,257.9,257.82,3.8791]
[1737841837914,9.3922513,257.95,257.81,9.3922513]
[1737841838109,0.02747667,257.87,257.82,0.02469787]
[1737841839215,0.02747667,257.87,257.83,3.879]
[1737841842510,0.02747667,257.87,257.82,0.02469787]
[1737841842712,0.02747667,257.87,257.84,3.8789]
[1737841845414,0.02747667,257.87,257.83,6.00507004]
[1737841845610,6.00507004,257.86,257.82,0.02469787]
[1737841846120,3.8788,257.85,257.82,0.02469787]
[1737841851824,0.02747667,257.87,257.82,0.02469787]
[1737841852022,3.90607667,257.87,257.82,0.02469787]
[1737841853127,0.02747667,257.87,257.83,9.88407004]
[1737841853423,0.02747667,257.87,257.83,6.00507004]
[1737841854216,0.02747667,257.87,257.84,3.8789]
[1737841856837,0.02747667,257.87,257.83,6.00507004]
[1737841857030,0.02747667,257.87,257.85,3.8787]
[1737841857432,0.02747667,257.87,257.83,6.00507004]
[1737841857637,0.02747667,257.87,257.85,6.00507004]
[1737841857834,0.02747667,257.87,257.82,0.02469787]
[1737841858435,0.02747667,257.87,257.82,3.90389787]
[1737841859340,0.02747667,257.87,257.82,0.02469787]
[1737841859640,0.02747667,257.87,257.83,3.879]
[1737841859839,3.90597667,257.87,257.82,0.02469787]
[1737841860036,6.00507004,257.85,257.82,0.02469787]
[1737841860641,3.879,257.84,257.82,0.02469787]
[1737841861044,6.00507004,257.83,257.76,3.8801]
[1737841861544,3.879,257.84,257.76,3.8801]
[1737841861844,3.879,257.84,257.77,6.00507004]
[1737841862239,0.02816796,257.83,257.78,0.02650472]
[1737841863136,0.02816796,257.83,257.79,6.00507004]
[1737841863338,0.02816796,257.83,257.8,3.8795]
[1737841865744,0.02816796,257.83,257.82,3.8792]
[1737841869740,6.00507004,257.95,257.81,6.00507004]
[1737841869945,1.2457,257.96,257.89,3.8781]
[1737841870439,6.00507004,257.95,257.89,3.8781]
[1737841871145,9.90796043,257.95,257.89,3.90754559]
[1737841872545,0.02569039,257.95,257.89,0.02944559]
[1737841873644,0.02569039,257.95,257.89,6.03451563]
[1737841874144,0.02569039,257.95,257.89,9.91251563]
[1737841874340,0.02569039,257.95,257.89,6.03451563]
[1737841875147,0.02569039,257.95,257.9,3.878]
[1737841877949,0.02569039,257.95,257.89,6.03451563]
[1737841878751,6.00507004,257.91,257.89,0.02944559]
[1737841878949,6.00507004,257.91,257.79,140.40635634]
[1737841879149,3.8793,257.82,257.79,140.40635634]
[1737841879353,6.00507004,257.84,257.79,140.40635634]
[1737841879648,3.8788,257.85,257.79,131.65540305]
[1737841879850,6.00507004,257.88,257.78,297.76699513]
[1737841880050,0.02831718,257.85,257.79,0.02570222]
[1737841880752,0.02831718,257.85,257.8,6.00507004]
[1737841881153,0.02831718,257.85,257.8,9.88457004]
[1737841882148,0.02831718,257.85,257.8,6.00507004]
[1737841882354,0.02831718,257.85,257.79,0.02570222]
[1737841883151,3.8791,257.83,257.79,0.02570222]
[1737841883754,3.90711718,257.85,257.79,0.02570222]
[1737841884851,3.90711718,257.85,257.8,6.00507004]
[1737841887051,0.02831718,257.85,257.8,6.00507004]
[1737841887357,0.02831718,257.85,257.81,6.00507004]
[1737841887652,0.02831718,257.85,257.79,6.03077226]
[1737841889056,3.90711718,257.85,257.79,9.91037226]
[1737841892157,3.879,257.84,257.79,6.03077226]
[1737841894258,0.02831718,257.85,257.79,6.03077226]
[1737841894455,3.8791,257.83,257.79,6.03077226]
[1737841895462,3.8789,257.84,257.79,6.03077226]
[1737841896859,0.02831718,257.85,257.8,3.8794]
[1737841897158,0.02831718,257.85,257.82,6.00507004]
[1737841898162,0.02831718,257.85,257.82,9.88427004]
[1737841899161,0.02831718,257.85,257.82,6.00507004]
[1737841899368,0.02831718,257.85,257.84,3.8789]
[1737841899863,3.8778,257.92,257.86,3.8786]
[1737841900963,0.02502106,257.92,257.86,0.02831208]
[1737841901157,0.02502106,257.92,257.88,6.00507004]
[1737841902765,0.02502106,257.92,257.88,9.88327004]
[1737841902961,0.02502106,257.92,257.88,6.00507004]
[1737841903365,0.02502106,257.92,257.91,3.8778]
[1737841904465,3.90272106,257.92,257.87,3.8783]
[1737841904659,6.0300911,257.92,257.86,0.02831208]
[1737841905069,3.878,257.9,257.86,0.02831208]
[1737841905671,9.9078911,257.92,257.86,0.02831208]
[1737841905970,3.90282106,257.92,257.86,0.02831208]
[1737841906268,0.02502106,257.92,257.86,6.03338212]
[1737841906867,0.02502106,257.92,257.87,3.8784]
[1737841909270,0.02502106,257.92,257.86,6.03338212]
[1737841909570,3.878,257.9,257.86,0.02831208]
[1737841910069,0.02502106,257.92,257.86,6.03338212]
[1737841910572,0.02502106,257.92,257.87,3.8784]
[1737841910764,0.02502106,257.92,257.86,6.03338212]
[1737841912169,0.02502106,257.92,257.86,9.91198212]
[1737841914878,3.90272106,257.92,257.86,9.91198212]
[1737841915478,0.02502106,257.92,257.86,9.91198212]
[1737841915778,0.02502106,257.92,257.87,3.8784]
[1737841916681,0.02502106,257.92,257.87,3.8783]
[1737841916880,0.02502106,257.92,257.86,6.03338212]
[1737841917782,0.02502106,257.92,257.9,3.878]
[1737841919484,0.02502106,257.92,257.91,3.8778]
[1737841922081,3.8769,257.98,257.93,3.8775]
[1737841922275,6.00507004,257.96,257.88,6.00507004]
[1737841922886,3.8772,257.95,257.88,9.88317004]
[1737841923177,0.027314,257.94,257.89,0.02970827]
[1737841923583,3.904814,257.94,257.89,0.02970827]
[1737841925186,6.00507004,257.91,257.89,0.02970827]
[1737841925489,6.00507004,257.91,257.8,6.00507004]
[1737841925689,6.00507004,257.88,257.78,137.66047309]
[1737841926285,6.00507004,257.88,257.78,6.00507004]
[1737841926587,0.02870131,257.86,257.82,3.8792]
[1737841926881,0.02870131,257.86,257.82,9.88427004]
[1737841929491,0.02870131,257.86,257.83,3.879]
[1737841932497,0.02870131,257.86,257.85,3.8787]
[1737841933295,6.00507004,257.98,257.89,3.8781]
[1737841933500,6.00507004,257.98,257.89,9.88317004]
[1737841933698,3.8771,257.96,257.89,6.00507004]
[1737841934396,0.0268163,257.95,257.9,0.02806874]
[1737841936198,0.0268163,257.95,257.9,3.90606874]
[1737841937500,0.0268163,257.95,257.91,3.8778]
[1737841937893,0.0268163,257.95,257.92,3.8775]
[1737841941598,0.0268163,257.95,257.91,6.00507004]
[1737841941804,0.0268163,257.95,257.93,3.8775]
[1737841943497,0.0268163,257.95,257.91,9.88277004]
[1737841943701,0.0268163,257.95,257.91,6.00507004]
[1737841945197,0.0268163,257.95,257.92,3.8777]
[1737841945405,0.0268163,257.95,257.9,0.02806874]
[1737841946306,3.8776,257.93,257.9,0.02806874]
[1737841947908,0.0268163,257.95,257.9,0.02806874]
[1737841948207,3.9041163,257.95,257.9,0.02806874]
[1737841957314,0.0268163,257.95,257.9,0.02806874]
[1737841957516,3.8778,257.91,257.9,0.02806874]
[1737841961813,3.8785,257.87,257.83,6.00507004]
[1737841962217,6.00507004,257.91,257.83,6.00507004]
[1737841962416,3.8783,257.89,257.84,3.8789]
[1737841962912,3.90496433,257.89,257.84,0.02604168]
[1737841963813,3.8783,257.88,257.84,0.02604168]
[1737841964518,0.02666433,257.89,257.84,0.02604168]
[1737841964715,0.02666433,257.89,257.85,9.88377004]
[1737841967423,0.02666433,257.89,257.86,3.8786]
[1737841969822,0.02666433,257.89,257.85,6.00507004]
[1737841970018,0.02666433,257.89,257.87,3.8784]
[1737841971019,0.02666433,257.89,257.85,6.00507004]
[1737841971229,0.02666433,257.89,257.88,3.8783]
[1737841982831,3.8769,257.98,257.92,3.8777]
[1737841983030,3.877,257.97,257.92,9.88277004]
[1737841983531,3.877,257.97,257.92,6.00507004]
[1737841983833,3.9054936,257.97,257.92,6.03055471]
[1737841984233,0.0284936,257.97,257.92,6.03055471]
[1737841984433,3.8771,257.96,257.92,6.03055471]
[1737841986635,3.9053936,257.97,257.92,6.03055471]
[1737841986936,0.0284936,257.97,257.92,0.02548467]
[1737841987132,3.8775,257.93,257.92,0.02548467]
[1737841989433,9.88257004,257.93,257.92,0.02548467]
[1737841989636,6.00507004,257.93,257.84,6.00507004]
[1737841989837,3.8783,257.89,257.84,6.00507004]
[1737841990131,6.00507004,257.91,257.82,6.00507004]
[1737841990333,3.879,257.84,257.8,6.00507004]
[1737841992238,0.02530712,257.85,257.8,6.00507004]
[1737841993631,0.02530712,257.85,257.84,6.00507004]
[1737841996742,0.02530712,257.85,257.84,9.88397004]
[1737841997141,3.90400712,257.85,257.82,6.00507004]
[1737841997439,0.02530712,257.85,257.79,0.02655283]
[1737841998843,0.02530712,257.85,257.8,6.00507004]
[1737841999243,3.879,257.84,257.8,6.00507004]
[1737841999847,0.02530712,257.85,257.8,6.00507004]
[1737842000951,3.90410712,257.85,257.8,6.00507004]
[1737842001753,3.90410712,257.85,257.82,6.00507004]
[1737842006062,0.02530712,257.85,257.82,6.00507004]
[1737842006362,0.02530712,257.85,257.84,6.00507004]
[1737842007268,0.02530712,257.85,257.84,9.88397004]
[1737842013961,3.8773,257.95,257.87,3.8784]
[1737842014161,6.00507004,257.97,257.88,6.00507004]
[1737842015065,3.8777,257.92,257.9,0.02752103]
[1737842018073,3.8777,257.92,257.9,6.03259107]
[1737842019169,3.8777,257.92,257.9,0.02752103]
[1737842020674,3.8776,257.93,257.9,0.02752103]
[1737842022773,3.90638288,257.95,257.9,0.02752103]
[1737842024971,3.90638288,257.95,257.9,3.90542103]
[1737842025674,3.90638288,257.95,257.91,3.8778]
[1737842027673,0.02898288,257.95,257.91,3.8778]
[1737842027874,3.8774,257.94,257.91,3.8778]
[1737842029174,3.8774,257.94,257.9,3.90552103]
[1737842032477,3.8759,258.04,257.97,3.8769]
[1737842032670,6.00507004,258.11,258.0,6.00507004]
[1737842032870,6.00507004,258.11,258.03,6.00507004]
[1737842033070,3.8752,258.09,258.03,6.00507004]
[1737842033269,6.00507004,258.14,258.05,6.00507004]
[1737842033681,0.02788926,258.12,258.07,0.02737551]
[1737842033880,0.02788926,258.12,258.08,6.00507004]
[1737842034078,0.02788926,258.12,258.11,6.00507004]
[1737842034380,1.297,258.24,258.11,6.00507004]
[1737842034381,2.6129,258.24,258.11,6.00507004]
[1737842034676,2.6129,258.24,257.94,193.20494383]
[1737842034677,6.00507004,258.26,258.17,6.00507004]
[1737842034872,6.00507004,258.29,258.2,6.00507004]
[1737842035073,6.00507004,258.31,258.22,6.00507004]
[1737842035583,0.02452032,258.29,258.24,0.02645333]
[1737842036481,6.02959036,258.29,258.24,0.02645333]
[1737842037175,3.8724,258.28,258.24,0.02645333]
[1737842037479,6.02959036,258.29,258.24,0.02645333]
[1737842037675,3.8727,258.26,258.24,0.02645333]
[1737842037873,6.00507004,258.25,258.13,6.00507004]
[1737842038075,6.00507004,258.22,258.13,6.00507004]
[1737842038476,3.8739,258.18,258.13,6.00507004]
[1737842038983,0.02863782,258.18,258.13,6.03384801]
[1737842039183,6.00507004,258.17,258.13,0.02877797]
[1737842039683,3.8742,258.15,258.13,0.02877797]
[1737842044288,6.00507004,258.17,258.08,6.00507004]
[1737842044489,3.8751,258.09,258.08,6.00507004]
[1737842046283,0.02570622,258.11,258.08,6.00507004]
[1737842046690,6.00507004,258.26,258.08,6.00507004]
[1737842046987,3.8734,258.21,258.17,6.00507004]
[1737842047383,1.3463,258.27,258.2,6.00507004]
[1737842047589,3.8731,258.23,258.2,6.00507004]
[1737842047783,1.3463,258.27,258.2,6.00507004]
[1737842047989,0.02709782,258.26,258.21,0.02823853]
[1737842048687,3.8731,258.23,258.21,0.02823853]
[1737842053197,3.8729,258.24,258.21,0.02823853]
[1737842054397,3.873,258.23,258.21,0.02823853]
[1737842056193,3.8732,258.22,258.21,0.02823853]
[1737842058602,0.02709782,258.26,258.21,0.02823853]
[1737842060592,3.8732,258.22,258.21,0.02823853]
[1737842061392,3.8732,258.22,258.11,14.57854816]
[1737842061393,3.8745,258.14,258.02,3.8013]
[1737842061602,3.8745,258.14,258.03,2.4655]
[1737842062302,3.8743,258.15,258.09,3.8751]
[1737842062606,0.02749093,258.12,258.07,0.02733487]
[1737842062805,3.8741,258.17,258.08,3.8752]
[1737842062999,0.02472828,258.12,258.1,9.36074816]
[1737842064103,0.02472828,258.12,258.1,13.23564816]
[1737842064302,0.02472828,258.12,258.1,9.36074816]
[1737842064705,0.02472828,258.12,258.1,13.23574816]
[1737842065203,0.02472828,258.12,258.07,0.02680987]
[1737842065598,0.02472828,258.12,258.09,3.8751]
[1737842066999,0.02472828,258.12,258.07,0.02680987]
[1737842067705,3.875,258.1,258.07,0.02680987]
[1737842068807,0.02472828,258.12,258.07,0.02680987]
[1737842069105,3.8753,258.08,258.07,0.02680987]
[1737842076717,9.36074816,258.1,257.92,131.65540305]
[1737842077011,9.36074816,258.02,257.92,131.65540305]
[1737842077415,9.36074816,258.02,257.87,131.65540305]
[1737842077612,9.36074816,258.02,257.9,3.878]
[1737842077813,9.36074816,258.02,257.93,0.02953665]
[1737842078014,0.02576396,257.99,257.93,0.02953665]
[1737842078818,3.8769,257.98,257.93,0.02953665]
[1737842079116,0.02576396,257.99,257.93,0.02953665]
[1737842080118,3.8773,257.95,257.93,0.02953665]
[1737842082819,0.02576396,257.99,257.93,0.02953665]
[1737842083716,3.8773,257.95,257.93,0.02953665]
[1737842083915,0.02576396,257.99,257.93,0.02953665]
[1737842084322,3.877,257.97,257.93,0.02953665]
[1737842086326,0.02576396,257.99,257.93,0.02953665]
[1737842086526,3.8771,257.96,257.93,0.02953665]
[1737842087326,0.02576396,257.99,257.93,0.02953665]
[1737842088224,3.8768,257.98,257.93,0.02953665]
[1737842088423,0.02576396,257.99,257.93,0.02953665]
[1737842090231,3.8768,257.98,257.93,3.90703665]
[1737842090430,0.02576396,257.99,257.93,3.90703665]
[1737842091932,3.90256396,257.99,257.93,3.90703665]
[1737842092534,3.8768,257.98,257.93,3.90703665]
[1737842093630,3.8768,257.98,257.93,9.90782343]
[1737842095833,3.90236396,257.99,257.93,9.90782343]
[1737842096138,0.02576396,257.99,257.93,6.03032343]
[1737842096435,0.02576396,257.99,257.94,3.8774]
[1737842103547,0.02576396,257.99,257.97,6.00078678]
[1737842103737,6.00078678,258.1,257.97,6.00078678]
[1737842103940,6.00078678,258.1,258.01,6.00078678]
[1737842104136,3.8759,258.04,258.01,6.00078678]
[1737842104444,6.00078678,258.08,257.99,9.87738678]
[1737842104648,3.8757,258.06,258.0,3.8765]
[1737842104838,3.90488967,258.06,258.01,0.02786325]
[1737842105639,0.02918967,258.06,258.01,6.02865003]
[1737842107037,6.00078678,258.16,258.05,6.00078678]
[1737842107340,6.00078678,258.22,258.13,6.00078678]
[1737842108141,0.02910036,258.2,258.15,0.02650956]
[1737842110338,0.02910036,258.2,258.15,6.02729634]
[1737842112746,0.02910036,258.2,258.15,9.90139634]
[1737842113340,0.02910036,258.2,258.19,6.00078678]
[1737842113541,11.63,258.48,258.19,6.00078678]
[1737842113542,6.00078678,258.28,258.19,6.00078678]
[1737842113745,6.00078678,258.3,258.21,6.00078678]
[1737842113949,3.8725,258.27,258.21,9.87398678]
[1737842114442,3.8725,258.27,258.23,6.00078678]
[1737842114647,3.90124263,258.27,258.23,6.00078678]
[1737842115043,3.8732,258.23,258.21,0.02567568]
[1737842115347,6.00078678,258.22,258.12,6.00078678]
[1737842115548,6.00078678,258.19,258.12,6.00078678]
[1737842115949,6.00078678,258.23,258.14,6.00078678]
[1737842116143,6.00078678,258.23,258.16,6.00078678]
[1737842116341,0.02761785,258.21,258.16,6.02596823]
[1737842116542,0.02761785,258.21,258.16,9.90006823]
[1737842116749,0.02761785,258.21,258.18,6.00078678]
[1737842116949,0.02761785,258.21,258.18,9.87458678]
[1737842117751,0.02761785,258.21,258.18,3.8738]
[1737842118050,0.02761785,258.21,258.16,9.38251274]
[1737842118251,0.02761785,258.21,258.19,3.8736]
[1737842118855,2.5443,258.33,258.23,3.8729]
[1737842118856,1.2635,258.33,258.23,3.8729]
[1737842119850,3.8721,258.3,258.24,3.8729]
[1737842120050,3.8721,258.3,258.25,0.02830445]
[1737842122662,3.8725,258.27,258.25,0.02830445]
[1737842124059,0.02589253,258.31,258.25,0.02830445]
[1737842124254,3.8726,258.26,258.25,0.02830445]
[1737842128058,3.8721,258.3,258.25,0.02830445]
[1737842128256,0.02589253,258.31,258.25,0.02830445]
[1737842129265,3.8726,258.26,258.25,0.02830445]
[1737842131760,3.8726,258.26,258.25,4.45e-06]